Cogmind - Beta 16 @@@ ROGUE MODE // 2026.02.02 @ 15:36:22 Player: Toddbert Result: Destroyed by JP-ARY(R) with Subdweller Machine Gun Performance ------------- Evolutions (0) 0 Regions Visited (3) 600 Robots Destroyed (10) 50 Value Destroyed (281) 281 Prototype IDs (0) 0 Alien Tech Used (0) 0 Bonus (-15) -15 TOTAL SCORE: 916 Bonus ------- Friendly Fire -15 Cogmind --------- Core Integrity 0/250 Matter 276/300 Energy 96/250 System Corruption 0% Temperature Cool (9) Movement Treading (480) Ox4 Location -10/Subcaves Parts ------- > --- POWER (1) -------- Ion Engine > --- PROPULSION (2) --- Light Treads > --- UTILITY (2) ------ Huge Storage Unit > --- WEAPON (2) ------- Light Assault Rifle > --- INVENTORY (25) --- Aluminum Leg Aluminum Leg EM Pulse Gun Light Assault Rifle Light Assault Rifle Peak State ------------ > --- POWER ------------ Ion Engine > --- PROPULSION ------- Aluminum Leg Aluminum Leg > --- UTILITY ---------- Small Storage Unit Terrain Scanner > --- WEAPON ----------- Light Assault Rifle Light Assault Rifle > --- INVENTORY -------- Light Ion Engine Light Treads Light Treads EM Pulse Gun [Rating: 7] Favorites ----------- Power Ion Engine Engine Ion Engine Propulsion Light Treads Treads Light Treads Leg Aluminum Leg Utility Huge Storage Unit Device Terrain Scanner Storage Huge Storage Unit Weapon Light Assault Rifle Ballistic Gun Light Assault Rifle Launcher Grenade Launcher Build | -11 -10 -10 -10 ------- Run | Yrd Mat Min Sub Slots Evolved . | . . . . Power . | . . . . Propulsion . | . . . . Utility . | . . . . Weapon . | . . . . Parts Attached 17 | 6 4 4 3 Power 3 | 1 1 . 1 Engine 3 | 1 1 . 1 Core . | . . . . Reactor . | . . . . Propulsion 6 | 2 1 3 . Treads 2 | . . 2 . Leg 4 | 2 1 1 . Wheel . | . . . . Hover . | . . . . Flight . | . . . . Utility 3 | 1 2 . . Device 1 | . 1 . . Storage 2 | 1 1 . . Processor . | . . . . Hackware . | . . . . Protection . | . . . . Artifact . | . . . . Weapon 5 | 2 . 1 2 Energy Gun . | . . . . Energy Cannon . | . . . . Ballistic Gun 4 | 2 . 1 1 Ballistic Cannon . | . . . . Launcher 1 | . . . 1 Special Weapon . | . . . . Impact Weapon . | . . . . Slashing Weapon . | . . . . Piercing Weapon . | . . . . Special Melee Weapon . | . . . . Unidentified Prototypes . | . . . . Parts Lost 8 | . 3 1 4 Power 2 | . 1 . 1 Propulsion 2 | . 1 . 1 Utility 1 | . . 1 . Weapon 3 | . 1 . 2 Highest Loss Streak 4 | . 3 1 4 To Critical Strikes . | . . . . Average Backups 7 | 1 7 7 7 Power . | . . 1 . Propulsion 2 | . 2 2 2 Utility . | . . . . Weapon 3 | . 3 4 4 Tool/Special . | . . . . Unused Backups 6 | . 3 . 3 Power 1 | . 1 . . Propulsion . | . . . . Utility . | . . . . Weapon 5 | . 2 . 3 Tool/Special . | . . . . Average Slot Usage (%) 90 | . 90 94 85 Engine 13 | . 13 14 14 Treads 16 | . . 23 28 Leg 11 | . 27 4 . Device 7 | . 11 9 . Storage 14 | . 14 14 14 Ballistic Gun 23 | . 21 27 19 Launcher 2 | . . . 8 Peak Build Rating 7 | 6 7 7 6 Average Rating 6 | 4 6 6 5 On Entrance 4 | . 6 7 6 Avg Prop Armor Cover (%) . | . . . . Naked Turns . | . . . . Heaviest Build 89 | 12 87 88 89 Greatest Support 40 | 20 20 40 40 Greatest Overweight (x) 4 | 3 4 4 2 Average Overweight (x) 1 | . . 2 2 Largest Inventory Capacity 25 | 8 25 25 25 Average Capacity 20 | 7 14 25 25 Most Carried 10 | 4 10 10 9 Average Carried 7 | 1 7 7 7 Final Capacity 25 | 8 25 25 25 Final Carried 10 | 4 10 8 5 Class Distribution -------------------- 100% | Mutant Dominant Class ---------------- Mutant | -10/Materials Mutant | -10/Mines Mutant | -10/Subcaves Resources | -11 -10 -10 -10 ----------- Run | Yrd Mat Min Sub Matter Collected 428 | 260 85 . 83 Remotely . | . . . . Salvage Created 285 | . 168 88 29 Parts 25 | . 17 5 3 Haulers Intercepted . | . . . . Recyclers Shooed 2 | . 1 1 . Parts Field Recycled . | . . . . Retrieved Matter . | . . . . Parts Self-Destructed 14 | . . . 14 Prevented . | . . . . Parts Restored . | . . . . Kills | -11 -10 -10 -10 ------- Run | Yrd Mat Min Sub Combat Hostiles Destroyed 9 | . 6 2 1 Guns 7 | . 5 2 . AOE 2 | . 1 . 1 Classes Destroyed 3 | . 3 . . Worker 1 | . 1 . . Swarmer 3 | . 3 . . Grunt 6 | . 3 2 1 Best Kill Streak 3 | . 3 2 1 Combat Bots Only 3 | . 3 2 1 Max Kills in Single Turn 1 | . 1 1 1 Gunslinging . | . . . . Exploded 1 | . 1 . 1 Melee . | . . . . Uniques/NPCs Destroyed . | . . . . Combat | -11 -10 -10 -10 -------- Run | Yrd Mat Min Sub Hostile Shots Fired 151 | . 77 22 52 Missed 52 | . 25 5 22 Hits 99 | . 52 17 30 Projectile 99 | . 52 17 30 Critical Strikes 1 | . 1 . . Part Disruptions 1 | . 1 . . Damage Taken 1182 | . 538 214 430 Core 252 | . 128 20 104 Absorbed by Shields . | . . . . Core Remaining (%) 100 | 100 . . . Volleys Fired 45 | . 33 10 2 Largest 2 | . 2 2 2 Hottest 50 | . 40 40 50 Shots Fired 84 | . 60 20 4 Gun 82 | . 60 20 2 Cannon . | . . . . Launcher 2 | . . . 2 Special . | . . . . Kinetic 82 | . 60 20 2 Thermal . | . . . . Explosive 2 | . . . 2 Electromagnetic . | . . . . Robot Hit Streak 6 | . 4 6 5 Robot Miss Streak 5 | . 5 3 2 Penetration Max . | . . . . Secondary Targets 1 | . . 1 . Max Gunslinging Chain 1 | . . 1 . Shots Hit Robots 36 | . 21 13 2 Core Hits 25 | . 17 6 2 Critical Kills . | . . . . Critical Parts Destroyed . | . . . . Critical Strikes . | . . . . Melee Attacks . | . . . . Impact . | . . . . Slashing . | . . . . Piercing . | . . . . Sneak Attacks . | . . . . Combat Hostiles . | . . . . Follow-up Attacks . | . . . . Damage Inflicted 438 | . 260 107 71 Guns 328 | . 212 107 9 Cannons . | . . . . Explosions 110 | . 48 . 62 Melee . | . . . . Ramming . | . . . . Kinetic 328 | . 212 107 9 Thermal . | . . . . Explosive 62 | . . . 62 Electromagnetic 48 | . 48 . . Impact . | . . . . Slashing . | . . . . Piercing . | . . . . Highest Corruption . | . . . . Average Corruption . | . . . . Corruption Purged . | . . . . Corruption Blocked . | . . . . Overload Shots . | . . . . Overflow Damage . | . . . . Projectiles . | . . . . Explosions . | . . . . Melee . | . . . . Knockbacks . | . . . . Impact . | . . . . Kinetic . | . . . . Secondary . | . . . . Self-Inflicted Damage 56 | . 42 . 14 Shots 2 | . 1 . 1 Rammed . | . . . . Targets Rammed . | . . . . Kicked . | . . . . Crushed . | . . . . Highest Temperature 42 | . 42 30 . Average Temperature 11 | . 11 11 . Received Heat Transfer 351 | . 135 123 93 Siege Activations . | . . . . Martial Activations . | . . . . Shielding Activations . | . . . . Robots Disrupted 1 | . 1 . . Combat Hostiles . | . . . . Robots Corrupted . | . . . . Combat Hostiles . | . . . . Parts Fried . | . . . . Impact Corruptions . | . . . . Robots Melted . | . . . . Combat Hostiles . | . . . . Parts Melted . | . . . . Heat Transferred . | . . . . Parts Sabotaged . | . . . . Parts Stolen . | . . . . Parts Stripped . | . . . . Power Chain Reactions . | . . . . Alert | -11 -10 -10 -10 ------- Run | Yrd Mat Min Sub Maximum Alert Level . | . . . . Low Security (%) 100 | 100 100 100 . Level 1 . | . . . . Level 2 . | . . . . Level 3 . | . . . . Level 4 . | . . . . Level 5 . | . . . . High Security . | . . . . Max Security . | . . . . Peak Influence 80 | . 80 40 . Initial . | . . . . Average 12 | . 23 4 . Influence Increases 320 | . 175 50 95 Destroy 0b10 Robot/C 180 | . 120 40 20 Destroy 0b10 Robot/NC 5 | . 5 . . Destroy Leader 30 | . 20 10 . Disable Machine 30 | . 30 . . Lose Combat Pursuer 75 | . . . 75 Influence Decreases 320 | . 175 50 95 Time Decay 290 | . 145 50 95 Lost Part 30 | . 30 . . Squads Dispatched . | . . . . Investigation . | . . . . Extermination . | . . . . Reinforcement . | . . . . Assault . | . . . . Garrison . | . . . . Intercept . | . . . . Searches Triggered . | . . . . Construction Impeded . | . . . . Haulers Reinforced . | . . . . Active Scanning Responses . | . . . . Cargo Convoy Interrupts . | . . . . Stealth | -11 -10 -10 -10 --------- Run | Yrd Mat Min Sub Distress Signals . | . . . . Communications Jammed . | . . . . Distress Signals . | . . . . Times Spotted 24 | . 7 2 15 Peak Tracking Total 7 | . 3 2 7 Tactical Retreats 2 | . . . 2 Traps | -11 -10 -10 -10 ------- Run | Yrd Mat Min Sub Traps Triggered . | . . . . Indirectly . | . . . . Trap Hack Attempts . | . . . . Triggered . | . . . . Disarmed . | . . . . Reprogrammed . | . . . . Reused . | . . . . Traps Extracted . | . . . . Installed . | . . . . Triggered . | . . . . Machines | -11 -10 -10 -10 ---------- Run | Yrd Mat Min Sub Machines Disabled 2 | . 2 . . Max in Single Turn 2 | . 2 . . Machines Repaired . | . . . . Machines Dismantled . | . . . . Machines Sabotaged . | . . . . Overloaded Fab Kills . | . . . . Hacking | -11 -10 -10 -10 --------- Run | Yrd Mat Min Sub Machines Accessed . | . . . . Terminals . | . . . . Fabricators . | . . . . Repair Stations . | . . . . Recycling Units . | . . . . Scanalyzers . | . . . . Garrison Access . | . . . . Total Hacks . | . . . . Successful . | . . . . Failed . | . . . . Catastrophic . | . . . . Database Lockouts . | . . . . Manual . | . . . . Terminals . | . . . . Fabricators . | . . . . Repair Stations . | . . . . Recycling Units . | . . . . Scanalyzers . | . . . . Garrison Access . | . . . . Terminal Hacks . | . . . . Fabricator Hacks . | . . . . Repair Station Hacks . | . . . . Recycling Unit Hacks . | . . . . Scanalyzer . | . . . . Garrison Access Hacks . | . . . . Unauthorized Hacks . | . . . . Terminals . | . . . . Fabricators . | . . . . Repair Stations . | . . . . Recycling Units . | . . . . Scanalyzers . | . . . . Garrison Access . | . . . . Data Cores Recovered . | . . . . Used . | . . . . Hacking Detections . | . . . . Full Trace Events . | . . . . Feedback Events . | . . . . Feedback Blocked . | . . . . Robot Schematics Acquired . | . . . . Robots Built . | . . . . Authchips . | . . . . Time . | . . . . Total Robot Build Rating . | . . . . Part Schematics Acquired . | . . . . Parts Built . | . . . . Authchips . | . . . . Time . | . . . . Total Part Build Rating . | . . . . Part Studies Acquired . | . . . . Parts Repaired . | . . . . Time . | . . . . Parts Recycled . | . . . . Recycled Matter . | . . . . Retrieved Matter . | . . . . Retrieved Components . | . . . . Parts Scanalyzed . | . . . . Part Schematics Acquired . | . . . . Parts Damaged . | . . . . Bothacking | -11 -10 -10 -10 ------------ Run | Yrd Mat Min Sub Used RIF Installer . | . . . . Robots Hacked . | . . . . Non-combat . | . . . . Combat . | . . . . Robot Hacks Applied . | . . . . Relay Couplers Released . | . . . . Fabnet Peak Effective % . | . . . . Robots Rewired . | . . . . Allies Hacked . | . . . . Hacks Repelled . | . . . . Allies | -11 -10 -10 -10 -------- Run | Yrd Mat Min Sub Total Allies . | . . . . Largest Group . | . . . . Highest-Rated Group . | . . . . Highest-Rated Ally . | . . . . Total Orders . | . . . . Ally Attacks . | . . . . Total Damage . | . . . . Kills . | . . . . Allies Corrupted . | . . . . Allies Melted . | . . . . Intel | -11 -10 -10 -10 ------- Run | Yrd Mat Min Sub Active Infowar (turns) 706 | . 384 322 . Terrain 706 | . 384 322 . Robot Analysis Total . | . . . . Derelict Logs Recovered 1 | . . . 1 Drone Launches . | . . . . Drone Recoveries . | . . . . Exploration | -11 -10 -10 -10 ------------- Run | Yrd Mat Min Sub Turns Passed 1341 | 66 442 488 345 Spaces Moved 464 | 45 180 138 101 Core 11 | 11 . . . Treads 221 | . . 120 101 Legs 232 | 34 180 18 . Wheels . | . . . . Hover . | . . . . Flight . | . . . . Fastest Speed 50 | 50 120 320 320 Average Speed 251 | 118 186 330 320 Slowest Speed 400 | 200 400 400 320 Overloaded Moves . | . . . . Propulsion Burnouts . | . . . . Robots Hopped . | . . . . Potential Cave-ins . | . . . . Cave-ins Triggered . | . . . . Exploration Rate (%) 19 | 3 26 33 14 Regions Visited 3 Branch Regions 2 Pre-discovered Areas . | . . . . Known Exits Taken . | . . . . Unknown Exits Taken 3 | 1 1 1 . Scrap Searched . | . . . . Spaces Dug . | . . . . Terrain Destroyed 11 | . . . 11 Melee . | . . . . Projectile . | . . . . AOE 11 | . . . 11 Terrain Rammed . | . . . . Walls Destroyed . | . . . . Machines Disabled . | . . . . Actions | -11 -10 -10 -10 --------- Run | Yrd Mat Min Sub Total 578 | 54 244 159 121 Wait 16 | . 8 . 8 Move 461 | 44 179 137 101 Hop . | . . . . Pick Up 20 | 4 15 1 . Fast Attach 8 | 6 2 . . Attach 11 | . 2 5 4 Detach 6 | . . 4 2 Swap . | . . . . Drop 8 | . 5 2 1 Fire 45 | . 33 10 2 Melee . | . . . . Ram . | . . . . Kick . | . . . . Crush . | . . . . Escape Stasis . | . . . . Rewire 3 | . . . 3 Trap . | . . . . Miscellaneous . | . . . . Route ------- -11/Scrapyard -10/Materials -10/Mines -10/Subcaves History --------- Turn | Location | Event 20 | -11/Scrapyard | Discovered new exit (range 15) 67 | -11/Scrapyard | Entered Materials 161 | -10/Materials | Discovered new exit (range 16) 303 | -10/Materials | Core integrity fell below 50% 326 | -10/Materials | Build established: Mutant 336 | -10/Materials | Lost 3 parts (1p1n1w) 509 | -10/Materials | Entered Mines 621 | -10/Mines | Discovered new exit (range 14) 727 | -10/Mines | YI-UF0 nonchalantly dropped a Grenade Launcher on the ground 997 | -10/Mines | Entered Subcaves 1068 | -10/Subcaves | Learned Materials emergency access door positions 1324 | -10/Subcaves | Ambushed by swarm of Subdwellers 1325 | -10/Subcaves | Ambushed by Subdwellers from Twisted Machinery 1325 | -10/Subcaves | Ambushed by Subdwellers from Twisted Machinery 1337 | -10/Subcaves | Core integrity fell below 20% 1342 | -10/Subcaves | Destroyed by JP-ARY(R) with Subdweller Machine Gun Last Messages --------------- 60-UMM(g): "Sorry we're late! Had another grouchy Sub to deal with. Who's the new fellow?" JP-ARY(R) emerges from the Twisted Machinery. ZV-WC0(R) suffers critical hit (Burn). Lgt. Ion Engine destroyed. 3E-1CP(R) suffers critical hit (Burn). WA-HEJ(R) emerges from the Twisted Machinery. ZV-WC0(R) destroyed. Lgt. Assault Rifle destroyed. GK-GQM(R) suffers critical hit (Burn). Acquired 53 matter. 3E-1CP(R) destroyed. PF-DZI(g) destroyed. 60-UMM(g) destroyed. GK-GQM(R) destroyed. Subatomizers dissect the Sub. Optics. L7-KAI(g) destroyed. Acquired 1 matter. Grenade Launcher destroyed. Lgt. Treads destroyed. Map ----- +----------------------------------------------------+ | ### ##????????????????????????????????????? | | ####?????????????????????????????????? | | ###???????????????????????????????? | | ##????##????????????????????????? | | #???? ##??? ####?????????????????????? | | ##????# #??# #?????????????????????? | | #???### #?? #?????????????????????? | | ##### #??? ##????????????????????? | | ### ## #??# ##???????????????????? | | ## " ##?# #?## #???????????????????? | | ### &#????# ### #??????????????????????? | | ??# & ###### #??????????????????????? | | ??# #??????????????????????? | | ??# " ### #??????????????????????? | | ??#### ## ##??????????????????????? | | ?????# ### ##????????###????????????? | | ????# ## &#"##?????? ##???????????? | | ???# ## ###%""##????? #???????????? | | ??# ###%! "#???? #???????????? | | ?# ##;#&&R!##?? #???????????? | | # ## ;;!%!R*R%### #???????????? | | # #?###### ]&!&*R=! #???????????? | | ###???????# % [ #???????????????? | | ?????????# % ##??????????????? | | ???????? %! #??????????????? | | ????????? ! @ ####??????????????? | | ????????? ###;#;#????????????????? | | ?????????? ; #; #??##? #???????????????? | | ??????????? ; ### ; ??????#???????????????? | | ??????????????####??### ??????????????????????? | | ??????????????????????# ?????????????????????? | | ??????????????????????# ?????????????????????? | | ??????????????????????### ?????????????????????? | | ????????????????????????# ?????????????????????? | | ????????????????????????? ?????????????????????? | | ????????????????????????? ?????????????????????? | | ????????????????????????? ????????????????????? | | ????????????????????????? ##????????????????????? | | ????????????????????????? ??????????????????????? | | ????????????????????????? #??????????????????????? | | ????????????????????????? ???????????????????????? | | ?????????????????????????????????????????????????? | | ?????????????????????????????????????????????????? | | ?????????????????????????????????????????????????? | | ?????????????????????????????????????????????????? | | ?????????????????????????????????????????????????? | | ?????????????????????????????????????????????????? | | ?????????????????????????????????????????????????? | | ?????????????????????????????????????????????????? | | ?????????????????????????????????????????????????? | +----------------------------------------------------+ Best States ------------- Heat Dissipation 25 Energy Generation 10 Energy Capacity 250 Matter Stores 300 Matter Capacity 300 Sight Range 16 Terrain Scan Range 14 Terrain Scan Density 10 Evasion (%) 55 Recoil Reduction 2 Item Schematics ----------------- None Robot Schematics ------------------ None Fabricated ------------ Nothing Repaired ---------- Nothing Studied --------- None Alien Tech Used ----------------- None Achievements -------------- None Challenges ------------ None Game ------ Seed ThermalBehemothAccelerator Manual? 0 Play Time 00:15:05 Cumulative 4.4 hours Start 2026.02.02 @ 15:21:15 End 2026.02.02 @ 15:36:22 Sessions 1 Manual Loads 0 Difficulty Rogue Special Mode None Game No. 13 Rogue 13 Adventurer 0 Explorer 0 Win Type - Total 0 Types 0/0/0/0/0/0/0/0/0/0 Lore% 2 Gallery% 4 Achievement% 6 Wizard Run 0 Options --------- Layout 0 ASCII 1 Keyboard 1 Movement Numpad Keybinds 0 Fullscreen 1 Font 24/Smallcaps Map View 76x56 Zoom Use 0% Tactical HUD 0 Map Filters NONE Filters NONE Steam 1 RUN: 9e96d5bb-3e0f-435d-a6b6-3d83a4784802